bitfinex/quotes_SOLUSD_20250126
["timestamp","ask_amount","ask_price","bid_price","bid_amount"]
[1737929508914,1.0,248.18,248.16,4.0596]
[1737929508915,1.0,248.18,248.16,0.03]
[1737929510026,1.0,248.2,248.16,4.0596]
[1737929510315,1.0,248.2,248.17,23.776884]
[1737929510896,1.0,248.2,248.16,0.03]
[1737929511923,1.0,248.2,248.17,23.776884]
[1737929512916,1.0,248.2,248.17,4.0294]
[1737929513398,1.0,248.18,248.16,0.03]
[1737929513798,1.0,248.2,248.17,23.776884]
[1737929514612,1.0,248.22,248.17,23.776884]
[1737929515216,1.0,248.22,248.19,23.776884]
[1737929515605,1.0,248.18,248.16,0.03]
[1737929518998,1.0,248.18,248.16,23.806884]
[1737929520620,1.0,248.19,248.16,23.806884]
[1737929520821,1.0,248.24,248.16,23.806884]
[1737929521014,1.0,248.27,248.18,23.776884]
[1737929521525,1.0,248.29,248.18,23.776884]
[1737929523125,1.0,248.29,248.2,23.776884]
[1737929523925,1.0,248.31,248.2,23.776884]
[1737929524223,1.0,248.29,248.2,23.776884]
[1737929525007,1.0,248.29,248.21,4.0288]
[1737929525213,1.0,248.29,248.22,23.776884]
[1737929525604,1.0,248.3,248.22,23.776884]
[1737929526428,1.0,248.3,248.2,37.878384]
[1737929528729,1.0,248.28,248.2,37.878384]
[1737929529529,1.0,248.3,248.2,37.878384]
[1737929529731,1.063,248.32,248.2,37.878384]
[1737929530230,1.0,248.3,248.2,37.878384]
[1737929531212,1.0,248.29,248.2,37.878384]
[1737929531413,1.063,248.32,248.2,37.878384]
[1737929533827,1.0,248.3,248.23,20.0]
[1737929534027,1.0,248.4,248.29,1.0]
[1737929534232,1.0,248.31,248.21,20.0]
[1737929534631,1.0,248.29,248.22,23.776884]
[1737929535912,1.0,248.29,248.23,4.0285]
[1737929536243,1.0,248.22,248.18,4.0293]
[1737929536442,1.0,248.24,248.16,4.0595]
[1737929536614,1.0,248.24,248.17,23.776884]
[1737929537225,1.0,248.26,248.17,23.776884]
[1737929537426,1.0,248.28,248.17,23.776884]
[1737929537736,1.0,248.28,248.21,23.776884]
[1737929538111,1.0,248.28,248.23,23.776884]
[1737929538427,1.0,248.23,248.17,20.0]
[1737929538631,1.0,248.23,248.17,24.0294]
[1737929538836,1.0,248.23,248.18,23.776884]
[1737929539840,1.0,248.23,248.18,27.806084]
[1737929540037,1.0,248.23,248.17,20.0]
[1737929540620,1.0,248.23,248.18,23.776884]
[1737929541840,1.0,248.27,248.2,23.776884]
[1737929542542,1.0,248.24,248.2,23.776884]
[1737929542736,1.0,248.23,248.17,24.0294]
[1737929543042,1.0,248.23,248.18,23.776884]
[1737929543234,1.0,248.26,248.18,23.776884]
[1737929544026,1.0,248.26,248.2,23.776884]
[1737929545847,1.0,248.25,248.2,23.776884]
[1737929546254,1.0,248.27,248.18,27.806184]
[1737929546427,1.0,248.27,248.18,37.879484]
[1737929546748,1.0,248.27,248.22,23.776884]
[1737929546929,1.0,248.28,248.22,23.776884]
[1737929547737,1.0,248.32,248.23,4.0285]
[1737929548048,0.063,248.33,248.23,4.0285]
[1737929548049,1.0,248.28,248.24,23.776884]
[1737929548837,1.0,248.28,248.22,27.805484]
[1737929549354,1.0,248.31,248.22,27.805484]
[1737929549540,0.063,248.33,248.25,20.0]
[1737929549745,0.063,248.33,248.26,23.776884]
[1737929550750,0.063,248.33,248.28,23.776884]
[1737929551349,4.0899,248.33,248.22,4.0286]
[1737929551552,1.0,248.3,248.22,4.0286]
[1737929551751,1.0,248.28,248.22,4.0286]
[1737929552130,1.0,248.28,248.23,23.776884]
[1737929552336,1.0,248.32,248.23,23.776884]
[1737929552951,1.0,248.32,248.22,27.805484]
[1737929553249,0.063,248.33,248.22,27.805484]
[1737929553648,1.0,248.3,248.22,27.805484]
[1737929554539,4.0899,248.33,248.17,30.0735]
[1737929554540,1.0,248.25,248.17,30.0735]
[1737929554754,1.0,248.3,248.18,23.776884]
[1737929555141,1.0,248.3,248.17,20.0]
[1737929555341,1.0,248.26,248.18,14.1026]
[1737929555755,1.0,248.26,248.19,23.776884]
[1737929557259,1.0,248.26,248.21,23.776884]
[1737929558155,1.0,248.3,248.21,23.776884]
[1737929558658,1.0,248.32,248.23,43.776884]
[1737929558957,1.0,248.32,248.23,23.776884]
[1737929559359,1.0,248.32,248.23,43.776884]
[1737929560660,1.0,248.3,248.24,4.0283]
[1737929561034,1.0,248.32,248.24,4.0283]
[1737929561539,1.0,248.32,248.24,14.0991]
[1737929563143,1.0,248.32,248.24,4.0283]
[1737929563348,1.0,248.3,248.24,4.0283]
[1737929564259,1.6341,248.29,248.2,10.0723]
[1737929564464,1.0,248.25,248.18,24.0293]
[1737929564636,1.0,248.25,248.19,23.776884]
[1737929564842,1.0,248.27,248.19,23.776884]
[1737929566063,1.0,248.27,248.2,20.0]
[1737929566251,2.6341,248.29,248.22,23.776884]
[1737929567544,1.0,248.29,248.22,23.776884]
[1737929568863,1.0,248.29,248.24,23.776884]
[1737929570861,1.0,248.29,248.22,23.806884]
[1737929571055,1.0,248.29,248.24,23.776884]
[1737929573746,1.063,248.33,248.28,23.776884]
[1737929573953,0.063,248.33,248.28,23.776884]
[1737929574976,0.063,248.33,248.3,23.776884]
[1737929576967,0.063,248.33,248.28,23.776884]
[1737929577268,0.063,248.33,248.28,27.804584]
[1737929578153,0.063,248.33,248.28,37.873784]
[1737929578363,1.0,248.39,248.32,23.776884]
[1737929579057,1.0,248.39,248.34,23.776884]
[1737929580172,1.0,248.37,248.34,23.776884]
[1737929580468,1.0,248.4,248.34,23.776884]
[1737929580776,1.0,248.37,248.34,23.776884]
[1737929581156,1.0,248.37,248.32,23.776884]
[1737929581460,1.0,248.39,248.34,4.0267]
[1737929581656,1.0,248.37,248.32,27.803784]
[1737929582077,1.0,248.36,248.32,27.803784]
[1737929582274,1.0,248.33,248.27,24.0278]
[1737929582751,1.0,248.33,248.28,23.776884]
[1737929582955,1.0,248.31,248.28,23.776884]
[1737929583460,1.0,248.31,248.25,4.0281]
[1737929584256,1.0,248.29,248.25,4.0281]
[1737929584472,1.0,248.27,248.23,4.0283]
[1737929585475,1.0,248.27,248.24,23.776884]
[1737929586857,1.0,248.31,248.24,4.0283]
[1737929587472,1.0,248.31,248.24,27.805184]
[1737929587669,1.0,248.33,248.25,23.776884]
[1737929589074,1.0,248.33,248.24,27.805184]
[1737929590067,1.0,248.29,248.22,20.03]
[1737929590269,1.0,248.27,248.22,0.03]
[1737929590458,1.0,248.25,248.22,0.03]
[1737929590657,1.0,248.25,248.22,23.806884]
[1737929591256,1.0,248.25,248.22,4.0585]
[1737929591461,1.0,248.27,248.22,4.0585]
[1737929592786,1.0,248.29,248.23,23.776884]
[1737929593076,1.0,248.29,248.25,0.03]
[1737929593275,1.0,248.31,248.25,23.806884]
[1737929594476,1.7043,248.39,248.25,23.806884]
[1737929594477,1.0,248.35,248.25,23.806884]
[1737929594678,1.0,248.37,248.25,23.806884]
[1737929595079,1.0,248.37,248.29,23.776884]
[1737929595381,2.7043,248.39,248.31,23.776884]
[1737929597183,2.7043,248.39,248.29,23.776884]
[1737929597364,2.7043,248.39,248.29,27.804384]
[1737929600268,1.0,248.35,248.29,27.804384]
[1737929601391,1.0,248.36,248.29,27.804384]
[1737929602773,1.0,248.38,248.29,27.804384]
[1737929603465,0.063,248.39,248.33,23.776884]
[1737929603869,1.0,248.35,248.33,23.776884]
[1737929604185,1.0,248.35,248.3,23.776884]
[1737929605573,1.0,248.35,248.29,4.0275]
[1737929605894,1.0,248.34,248.3,23.776884]
[1737929606282,1.0,248.34,248.31,0.03]
[1737929606789,1.0,248.37,248.31,0.03]
[1737929606973,1.0,248.34,248.31,0.03]
[1737929607374,1.0,248.37,248.31,0.03]
[1737929607609,1.0,248.34,248.31,0.03]
[1737929608590,1.0,248.37,248.31,0.03]
[1737929608790,1.0,248.34,248.31,0.03]
[1737929609987,1.0,248.36,248.31,0.03]
[1737929610600,1.0,248.33,248.31,0.03]
[1737929611689,9.17819072,248.33,248.31,0.03]
[1737929612596,9.2607261,248.32,248.31,0.03]
[1737929614605,4.027,248.32,248.31,0.03]
[1737929616389,1.0,248.33,248.31,0.03]
[1737929617483,2.619,248.35,248.31,0.03]
[1737929617688,1.0,248.33,248.31,0.03]
[1737929618399,0.063,248.33,248.31,0.03]
[1737929619204,1.0,248.32,248.31,0.03]
[1737929619402,9.17728428,248.32,248.31,0.03]
[1737929620715,10.90098428,248.32,248.31,0.03]
[1737929621591,10.69238428,248.32,248.31,0.03]
[1737929622196,2.5151,248.32,248.31,0.03]
[1737929623594,10.69238428,248.32,248.31,0.03]
[1737929625810,10.90098428,248.32,248.31,0.03]
[1737929626412,10.69238428,248.32,248.31,0.03]
[1737929629819,2.5151,248.32,248.31,0.03]
[1737929632111,1.0,248.32,248.31,0.03]
[1737929633211,21.0,248.32,248.31,0.03]
[1737929633523,29.17728428,248.32,248.31,0.03]
[1737929634998,29.38588428,248.32,248.31,0.03]
[1737929635198,33.41288428,248.32,248.31,0.03]
[1737929635722,33.20428428,248.32,248.31,0.03]
[1737929636107,25.027,248.32,248.31,0.03]
[1737929636920,33.20428428,248.32,248.31,0.03]
[1737929638608,25.027,248.32,248.31,0.03]
[1737929641541,33.20428428,248.32,248.31,0.03]
[1737929643830,1.0,248.32,248.31,0.03]
[1737929646836,31.0,248.32,248.31,0.03]
[1737929647146,1.0,248.32,248.31,0.03]
[1737929663457,0.063,248.33,248.32,23.776884]
[1737929663936,0.063,248.33,248.32,31.669384]
[1737929664959,1.063,248.39,248.32,31.669384]
[1737929665132,1.063,248.39,248.36,23.776884]
[1737929665656,1.063,248.39,248.36,27.803284]
[1737929666852,0.063,248.39,248.36,27.803284]
[1737929667666,0.063,248.39,248.38,43.776884]
[1737929668365,0.063,248.44,248.39,23.776884]
[1737929668560,0.063,248.44,248.43,23.776884]
[1737929668735,0.063,248.45,248.43,160.134284]
[1737929668933,0.063,248.45,248.44,27.801984]
[1737929669133,0.063,248.45,248.44,162.501984]
[1737929669334,0.063,248.47,248.45,23.776884]
[1737929669834,0.063,248.47,248.46,24.776884]
[1737929670235,0.063,248.53,248.49,20.0]
[1737929670447,0.063,248.53,248.5,23.776884]
[1737929670950,0.063,248.53,248.45,1.61139652]
[1737929671147,1.0,248.5,248.43,134.7]
[1737929671333,1.0,248.45,248.41,20.0]
[1737929671534,8.16828027,248.52,248.41,20.0]
[1737929671535,1.0,248.47,248.41,20.0]
[1737929672463,4.0867,248.53,248.42,23.776884]
[1737929672464,1.0,248.49,248.42,23.776884]
[1737929673135,1.0,248.47,248.42,23.776884]
[1737929673453,1.0,248.45,248.42,23.776884]
[1737929674071,1.0,248.42,248.4,23.776884]
[1737929674762,1.0,248.44,248.4,23.776884]
[1737929675172,0.063,248.53,248.38,134.7]
[1737929675173,1.0,248.42,248.38,134.7]
[1737929675744,1.0,248.39,248.36,20.0]
[1737929675964,12.19318027,248.46,248.37,23.776884]
[1737929675965,1.0,248.41,248.37,23.776884]
[1737929677769,1.0,248.43,248.37,27.802984]
[1737929678944,1.0,248.43,248.38,0.03]
[1737929685645,1.0,248.42,248.38,0.03]
[1737929685967,1.0,248.44,248.38,0.03]
[1737929686167,1.0,248.44,248.4,20.0]
[1737929687066,1.0,248.46,248.41,20.0]
[1737929687259,1.0,248.48,248.41,20.0]
[1737929688266,1.063,248.5,248.45,20.0]
[1737929688473,0.063,248.5,248.45,20.0]
[1737929688655,0.063,248.5,248.45,154.7]
[1737929690469,0.063,248.5,248.46,4.0247]
[1737929690651,0.063,248.5,248.49,20.0]
[1737929694078,0.063,248.5,248.49,24.0243]
[1737929698478,0.063,248.5,248.49,25.6557]
[1737929698780,0.063,248.53,248.49,32.2932]
[1737929699087,0.063,248.53,248.49,166.9932]
[1737929699279,0.063,248.53,248.49,167.9932]
[1737929700179,0.0001,248.53,248.52,1.0]
[1737929700362,0.0001,248.53,248.52,135.7]
[1737929700562,0.063,248.57,248.55,20.0]
[1737929701188,0.063,248.57,248.55,154.7]
[1737929703079,0.063,248.57,248.56,4.0231]
[1737929703387,0.063,248.57,248.56,134.7]
[1737929703790,0.063,248.62,248.57,135.7]
[1737929704093,0.063,248.67,248.61,20.0]
[1737929704288,1.0,248.76,248.63,1.0]
[1737929704585,5.21857122,248.85,248.63,1.0]
[1737929704586,1.0,248.8,248.66,20.0]
[1737929704786,1.0,248.77,248.67,20.0]
[1737929705170,1.0,248.77,248.68,4.0212]
[1737929705384,1.0,248.77,248.71,20.0]
[1737929705566,1.0,248.8,248.71,20.0]
[1737929705772,1.0,248.74,248.71,154.7]
[1737929706998,1.0,248.72,248.71,134.7]
[1737929707371,1.0,248.69,248.66,20.0]
[1737929707692,1.0,248.63,248.61,20.0]
[1737929709394,1.0,248.61,248.5,4.0241]
[1737929709688,1.0,248.59,248.54,20.0]
[1737929709887,1.0,248.57,248.54,20.0]
[1737929710093,1.0,248.55,248.54,20.0]
[1737929710801,1.0,248.55,248.48,134.7]
[1737929710993,1.0,248.55,248.44,5.42974326]
[1737929710994,1.0,248.5,248.44,134.7]
[1737929711301,1.0,248.5,248.48,20.0]
[1737929711897,1.0,248.5,248.47,20.0]
[1737929712471,1.0,248.46,248.44,134.7]
[1737929712872,1.0,248.48,248.44,134.7]
[1737929713099,1.0,248.46,248.44,134.7]
[1737929713589,1.0,248.46,248.44,20.0]
[1737929713790,1.0,248.46,248.44,20.063]
[1737929715071,1.0,248.46,248.44,0.063]
[1737929716607,5.0248,248.46,248.44,0.063]
[1737929716900,0.2086,248.45,248.44,0.063]
[1737929717595,1.0,248.46,248.44,0.063]
[1737929720014,0.2086,248.45,248.44,0.063]
[1737929720185,13.17032286,248.46,248.44,0.063]
[1737929721284,0.2086,248.45,248.44,0.063]
[1737929722191,1.7087,248.45,248.44,0.063]
[1737929723894,21.0,248.43,248.4,0.03]
[1737929724103,9.14552286,248.41,248.4,0.03]
[1737929725327,23.0,248.39,248.38,0.03]
[1737929725504,31.35412286,248.39,248.38,0.03]
[1737929725908,61.35412286,248.39,248.38,0.03]
[1737929726310,61.35412286,248.39,248.31,0.03]
[1737929726311,1.0,248.32,248.31,0.03]
[1737929726634,9.35412286,248.32,248.31,0.03]
[1737929726812,10.93652286,248.32,248.31,0.03]
[1737929727617,14.96352286,248.32,248.31,0.03]
[1737929728206,1.0,248.26,248.25,0.03]
[1737929728522,1.2086,248.26,248.25,0.03]
[1737929729414,31.0,248.26,248.25,0.03]
[1737929729923,31.2086,248.26,248.25,0.03]
[1737929731314,32.2086,248.26,248.25,0.03]
[1737929736705,31.2086,248.26,248.25,0.03]
[1737929736906,1.0,248.26,248.25,0.03]
[1737929750037,1.0,248.28,248.25,0.03]
[1737929750710,0.03,248.31,248.26,23.776884]
[1737929750711,1.0,248.3,248.26,23.776884]
[1737929750915,0.03,248.31,248.26,23.776884]
[1737929751841,0.03,248.31,248.28,23.776884]
[1737929752726,0.03,248.31,248.3,23.776884]
[1737929753032,1.0,248.26,248.25,0.03]
[1737929753736,1.0,248.28,248.25,0.03]
[1737929753939,1.0,248.28,248.25,4.0581]
[1737929754838,1.0,248.28,248.25,0.03]
[1737929756824,1.0,248.26,248.25,0.03]
[1737929758935,1.0,248.29,248.25,0.03]
[1737929759133,1.0,248.29,248.27,23.776884]
[1737929759743,1.03,248.31,248.27,23.776884]
[1737929759946,1.0,248.29,248.27,27.804584]
[1737929761747,1.0,248.29,248.27,23.776884]
[1737929763034,1.0,248.26,248.25,0.03]
[1737929764232,1.2086,248.26,248.25,0.03]
[1737929764436,5.2366,248.26,248.25,0.03]
[1737929778150,1.5781,248.31,248.25,0.03]
[1737929778351,21.5781,248.31,248.25,0.03]
[1737929778948,1.5781,248.31,248.25,0.03]
[1737929779875,4.0273,248.3,248.25,0.03]
[1737929784063,0.03,248.31,248.25,0.03]
[1737929784260,0.03,248.31,248.26,23.776884]
[1737929785964,0.03,248.3,248.26,23.776884]
[1737929786662,4.0262,248.37,248.29,23.776884]
[1737929786869,24.0262,248.37,248.29,23.776884]
[1737929787050,4.0262,248.37,248.29,23.776884]
[1737929787569,8.17713417,248.4,248.29,23.776884]
[1737929787865,4.0259,248.39,248.31,23.776884]
[1737929788251,12.20223417,248.44,248.33,23.776884]
[1737929789866,12.20223417,248.44,248.35,23.776884]
[1737929793759,8.17713417,248.42,248.35,23.776884]
[1737929794165,8.17713417,248.42,248.32,7.9074]
[1737929794471,8.17713417,248.4,248.32,7.9074]
[1737929794649,8.17713417,248.4,248.33,23.776884]
[1737929795373,8.17713417,248.4,248.32,7.9074]
[1737929795374,8.17713417,248.37,248.32,6.2969]
[1737929795555,8.17713417,248.37,248.33,23.776884]
[1737929796056,4.0264,248.36,248.33,23.776884]
[1737929796774,4.0264,248.36,248.27,1.5775]
[1737929796962,4.0264,248.36,248.28,23.776884]
[1737929797474,4.0264,248.36,248.3,0.063]
[1737929798954,8.17713417,248.31,248.3,0.063]
[1737929799592,20.0,248.33,248.3,0.063]
[1737929800496,12.20363417,248.35,248.3,0.063]
[1737929800668,15.29881922,248.36,248.3,0.063]
[1737929801491,5.23281922,248.38,248.3,0.063]
[1737929801664,4.0259,248.39,248.31,1.0]
[1737929801873,4.0259,248.39,248.32,23.776884]
[1737929802387,5.23281922,248.38,248.3,0.063]
[1737929802561,4.0262,248.37,248.3,0.063]
[1737929803700,4.0262,248.37,248.31,23.776884]
[1737929804785,4.0259,248.39,248.31,23.776884]
[1737929809491,4.0559,248.39,248.32,1.0]
[1737929810491,0.03,248.39,248.32,1.0]
[1737929811695,0.03,248.39,248.37,1.0]
[1737929812904,0.03,248.39,248.37,1.40255568]
[1737929813671,0.03,248.39,248.38,4.026]
[1737929814377,0.03,248.39,248.38,10.0909]
[1737929814682,0.03,248.44,248.43,1.0]
[1737929814886,0.03,248.44,248.43,1.40242999]
[1737929815700,0.03,248.44,248.43,5.42762999]
[1737929816000,0.03,248.44,248.43,11.79452999]
[1737929816998,0.03,248.56,248.46,20.0]
[1737929817191,0.03,248.56,248.46,20.40236651]
[1737929817816,0.03,248.56,248.46,24.42706651]
[1737929818997,0.03,248.56,248.52,1.0]
[1737929826502,5.2531747,248.56,248.5,1.0]
[1737929826889,5.2531747,248.56,248.48,1.0]
[1737929827899,5.2531747,248.56,248.47,134.7]
[1737929827900,5.2231747,248.54,248.47,134.7]
[1737929828207,5.2231747,248.54,248.48,1.0]
[1737929828502,5.2231747,248.54,248.45,1.0]
[1737929828700,5.2231747,248.49,248.45,1.0]
[1737929829510,5.2231747,248.49,248.44,1.6288]
[1737929830303,4.0244,248.48,248.44,1.6288]
[1737929830699,4.0244,248.48,248.44,2.6288]
[1737929832691,5.2231747,248.51,248.44,2.6288]
[1737929832891,4.0241,248.5,248.44,2.6918]
[1737929837014,5.2231747,248.53,248.46,1.0]
[1737929837214,4.0234,248.54,248.5,1.0]
[1737929837517,0.03,248.56,248.5,1.0]
[1737929838014,0.03,248.56,248.53,1.0]
[1737929838512,0.03,248.56,248.55,1.0]
[1737929838814,0.03,248.56,248.55,1.40225943]
[1737929839110,0.03,248.56,248.55,5.42555943]
[1737929839316,0.03,248.56,248.55,141.70105943]
[1737929839621,0.03,248.56,248.55,141.2988]
[1737929841115,0.03,248.56,248.55,142.2988]
[1737929841314,0.03,248.64,248.63,1.0]
[1737929842016,0.03,248.64,248.63,21.0]
[1737929843713,0.03,248.64,248.63,1.0]
[1737929846825,0.03,248.64,248.63,1.40211127]
[1737929852407,0.03,248.64,248.63,136.10211127]
[1737929852606,0.03,248.64,248.63,135.7]
[1737929854228,0.03,248.64,248.63,141.84]
[1737929854404,0.03,248.69,248.63,141.84]
[1737929854405,0.03,248.69,248.68,1.0]
[1737929854602,0.03,248.69,248.68,136.10207713]
[1737929854825,0.03,248.69,248.68,135.7]
[1737929856106,0.03,248.69,248.68,139.7212]
[1737929857436,0.03,248.69,248.68,146.1509]
[1737929857614,0.0001,248.71,248.7,22.0]
[1737929857809,0.0001,248.71,248.7,22.4018847]
[1737929858412,0.03,248.81,248.8,1.0]
[1737929859138,0.03,248.81,248.8,135.7]
[1737929859737,0.03,248.81,248.8,139.7192]
[1737929859938,0.03,248.81,248.8,146.2069]
[1737929860127,0.03,248.89,248.88,1.0]
[1737929862127,0.03,248.89,248.87,1.0]
[1737929864637,0.03,248.89,248.85,1.0]
[1737929864835,0.03,248.89,248.87,1.0]
[1737929868337,0.03,248.89,248.87,5.0181]
[1737929870019,0.03,248.89,248.88,0.40170441]
[1737929870221,0.03,248.89,248.88,24.17858841]
[1737929870427,4.016,249.01,248.97,23.776884]
[1737929871141,5.5272,249.02,248.99,23.776884]
[1737929871327,4.0157,249.02,248.99,23.776884]
[1737929872251,5.20726575,249.07,249.01,1.0]
[1737929872430,5.20726575,249.07,248.99,23.776884]
[1737929872431,5.20726575,249.07,249.04,23.776884]
[1737929873551,9.22216575,249.07,249.04,23.776884]
[1737929874159,4.0149,249.07,249.04,23.776884]
[1737929875670,8.12874581,249.08,249.06,23.776884]
[1737929875863,5.5262,249.09,249.06,23.776884]
[1737929876957,5.0262,249.09,249.06,23.776884]
[1737929877262,8.12874581,249.14,249.11,23.776884]
[1737929877666,8.12874581,249.16,249.11,23.776884]
[1737929878282,8.12874581,249.18,249.15,23.776884]
[1737929878584,8.12874581,249.18,249.16,23.776884]
[1737929878783,8.12874581,249.18,249.15,1.0]
[1737929879160,8.12874581,249.18,249.16,23.776884]
[1737929879651,4.0126,249.21,249.16,23.776884]
[1737929879652,8.12874581,249.2,249.16,23.776884]
[1737929879852,4.013,249.19,249.13,1.0]
[1737929880395,8.12874581,249.16,249.1,1.0]
[1737929880558,8.12874581,249.11,249.07,1.0]
[1737929880760,8.12874581,249.09,249.07,1.0]
[1737929881668,4.0147,249.08,249.03,1.0]
[1737929881874,8.12874581,249.07,249.01,1.0]
[1737929882883,8.12874581,249.07,248.99,1.0]
[1737929883183,8.12874581,249.05,248.99,1.0]
[1737929883579,4.015,249.06,248.92,1.64209055]
[1737929883580,8.12874581,249.01,248.95,1.0]
[1737929883754,8.12874581,248.99,248.96,1.0]
[1737929883958,4.015,249.06,249.02,24.776884]
[1737929884179,4.015,249.06,249.05,1.0]
[1737929885084,4.0147,249.08,249.05,24.776884]
[1737929885267,4.0147,249.08,249.06,23.776884]
[1737929885468,4.0147,249.08,249.03,1.0]
[1737929885469,8.12874581,249.07,249.03,1.0]
[1737929885857,8.12874581,249.07,249.04,23.776884]
[1737929887675,4.015,249.06,249.04,23.776884]
[1737929887883,8.12874581,249.07,249.05,1.0]
[1737929888085,4.0148,249.08,249.04,23.776884]
[1737929888264,4.0148,249.08,249.06,23.776884]
[1737929888991,12.14354581,249.08,249.01,1.0]
[1737929889195,8.12874581,249.02,248.96,1.0]
[1737929889707,8.12874581,249.02,248.97,23.776884]
[1737929889884,8.12874581,249.0,248.94,1.0]
[1737929890895,4.0162,248.99,248.92,1.0]
[1737929891073,4.0162,248.99,248.94,1.0]
[1737929891708,4.0162,248.99,248.93,23.776884]
[1737929892109,4.0162,248.99,248.92,1.0]
[1737929892276,4.0162,248.99,248.94,1.0]
[1737929892705,4.0162,248.99,248.95,23.776884]
[1737929893411,4.0162,248.99,248.94,1.0]
[1737929893599,8.12874581,248.96,248.89,1.0]
[1737929893807,8.12874581,248.94,248.87,1.0]
[1737929894006,12.14544581,248.96,248.95,0.063]
[1737929894174,4.0167,248.96,248.95,0.063]
[1737929894380,12.14544581,248.96,248.95,0.063]
[1737929895397,8.12874581,248.96,248.95,0.063]
[1737929896398,38.12874581,248.96,248.95,0.063]
[1737929896599,30.0,248.96,248.95,24.839884]
[1737929898704,8.12874581,248.96,248.95,0.063]
[1737929899506,12.14544581,248.96,248.95,0.063]
[1737929899804,42.14544581,248.96,248.95,0.063]
[1737929900703,42.14544581,248.96,248.95,0.0001]
[1737929901406,12.14544581,248.96,248.95,0.0001]
[1737929902717,13.64564581,248.96,248.95,0.0001]
[1737929903219,14.64564581,248.96,248.95,0.0001]
[1737929903505,14.64564581,248.96,248.82,0.063]
[1737929903506,20.0,248.93,248.82,0.063]
[1737929903711,8.12874581,248.86,248.82,0.063]
[1737929904915,4.0184,248.85,248.82,0.063]
[1737929905106,8.12874581,248.84,248.82,0.063]
[1737929906614,4.0184,248.85,248.83,23.776884]
[1737929906805,30.0,248.84,248.83,23.776884]
[1737929907009,8.12874581,248.88,248.85,1.0]
[1737929907198,12.14684581,248.88,248.83,1.0]
[1737929907517,12.14684581,248.88,248.86,23.776884]
[1737929908131,8.12874581,248.94,248.91,23.776884]
[1737929908415,12.14544581,248.96,248.93,23.776884]
[1737929908619,8.12874581,248.94,248.89,23.776884]
[1737929909415,12.14574581,248.94,248.89,23.776884]
[1737929910495,8.12874581,248.92,248.87,23.776884]
[1737929910700,8.12874581,248.9,248.87,23.776884]
[1737929911013,8.12874581,248.9,248.84,1.0]
[1737929911204,8.12874581,248.9,248.85,23.776884]
[1737929911398,4.0178,248.89,248.87,1.0]
[1737929911598,8.12874581,248.88,248.82,0.063]